[Event "1st Serbian League 2022"]
[Site "Vrnjacka Banja"]
[Date "2022.09.27"]
[Round "8.36"]
[White "Velikic, Adela"]
[Black "Dimic, Pavle"]
[Result "1-0"]
[ECO "E73"]
[WhiteElo "2272"]
[BlackElo "2352"]
[Annotator "TA"]
[PlyCount "97"]
[EventDate "2022.09.20"]
[EventType "team-tourn"]
[EventCountry "SRB"]
[SourceTitle "playchess.com"]
[Source "ChessBase"]
[SourceQuality "1"]
[TimeControl "40/5400+30:1800+30"]

{[%evp 14,96,58,33,51,27,43,50,53,55,46,35,32,0,0,0,0,-71,-71,-78,-83,-100,-107,-120,23,40,52,37,188,155,226,208,229,149,309,102,117,87,727,728,903,510,507,509,500,477,1017,971,989,964,1023,1033,1008,948,1575,1561,1925,1157,1047,713,1309,1323,1569,1447,1327,1588,29974,1608,1609,0,29974,29977,29977,29978,29978,29978,29978,420,29977,29978,29976,29972,29998,29999,29999]} 1. c4 {[%emt 0:00:04]} Nf6 {[%emt 0:00:21]} 2. Nc3 {[%emt 0:00:09]} g6 {[%emt 0:00:12]} 3. d4 {[%emt 0:00:24]} Bg7 {[%emt 0:00:08]} 4. e4 {[%emt 0:00:06]} d6 {[%emt 0:00:05]} 5. Be2 {[%emt 0:00:05]} O-O {[%emt 0:00:06]} 6. Be3 {[%emt 0:00:03]} e5 {[%emt 0:00:04]} 7. d5 {[%emt 0:00:04]} Na6 {[%emt 0:00:14]} 8. h4 {[%emt 0:00:09]} Nc5 {[%emt 0:00:57] E73: King's Indian: Averbakh Variation without 6...c5.} 9. Qc2 {[%emt 0:00:08]} b6 {[%emt 0:00:39]} 10. h5 {[%emt 0:00:37] [#]} Nxh5 $146 {[%emt 0:00:37] White is slightly better.} ({Predecessor:} 10... a5 11. hxg6 fxg6 12. Nh3 Bd7 13. O-O-O a4 14. f3 Nh5 15. Nf2 Bf6 16. Qd2 Ng3 {0-1 (39) Ruckschloss,K (2306)-Kubala,J (2125) Bratislava 2001}) 11. Bxh5 {[%emt 0:01:05]} gxh5 {[%emt 0:00:05]} 12. b4 {[%emt 0:05:20]} Na6 {[%emt 0:04:39]} 13. b5 {[%emt 0:17:32]} (13. Qd1 $5 {[%cal Rd1h5]}) 13... Nc5 {[%emt 0:01:32]} (13... Nb4 $2 14. Qb1 $18) 14. Rxh5 {[%emt 0:15:18]} Qe8 {[%emt 0:04:53][%cal Of7f5]} 15. g4 {[%emt 0:08:07] Prevents f5.} (15. Bxc5 $11 {keeps the balance.} bxc5 16. Rh2) 15... Bxg4 $17 {[%emt 0:05:33]} 16. Rg5 {[%emt 0:00:40]} Bd7 {[%emt 0:01:33][%cal Of7f5]} 17. Nge2 {[%emt 0:05:32]} Kh8 {[%emt 0:45:28]} 18. O-O-O {[%emt 0:06:49]} f5 {[%emt 0:07:44]} (18... Bh6 $17 19. Rh5 Bxe3+ 20. fxe3 Rg8) 19. Rh1 $1 $11 {[%emt 0:15:22][%cal Re4f5]} (19. Bxc5 Bh6 20. Be3 f4 $17) 19... f4 {[%emt 0:02:51]} ({Weaker is} 19... Bf6 20. Rgh5 Qe7 21. exf5 $16 (21. Rxh7+ Qxh7 22. Rxh7+ Kxh7 $14)) 20. Nxf4 {[%emt 0:05:18] Chess con chili.} ({Reject} 20. Bxc5 bxc5 21. Kb2 Rf6 $17) 20... Rf7 $2 {[%emt 0:15:26]} (20... Rxf4 $14 21. Bxf4 exf4) 21. Ng6+ $1 $18 {[%emt 0:10:29]} Kg8 {[%emt 0:00:04] [#]} 22. Nh4 {[%emt 0:00:09]} Kh8 {[%emt 0:02:01]} (22... h6 $2 23. Rg3 $18) 23. Qe2 {[%emt 0:01:52]} Rf6 $2 {[%emt 0:00:20]} (23... Bf6 $16 {keeps fighting.}) 24. Nf5 $2 {[%emt 0:05:02]} (24. f4 $18 {has better winning chances.}) 24... Bxf5 $16 {[%emt 0:03:35]} 25. exf5 {[%emt 0:00:01]} ({But not} 25. Rxf5 {[#]} Nxe4 $1 26. Rxf6 Nxf6 $15) 25... Qf7 {[%emt 0:01:05][%mdl 8192]} (25... Bh6 $16) 26. Rgh5 $18 {[%emt 0:00:47]} Bf8 {[%emt 0:02:38]} 27. Rxh7+ {[%emt 0:01:10]} Qxh7 {[%emt 0:00:06]} 28. Rxh7+ {[%emt 0:00:05]} Kxh7 {[%emt 0:00:05]} 29. Qh5+ {[%emt 0:00:22]} Kg8 {[%emt 0:01:17]} (29... Bh6 $142 30. Kb2 Kg7 31. Bxc5 bxc5) 30. Bg5 {[%emt 0:01:08]} Rf7 {[%emt 0:00:13]} 31. f6 {[%emt 0:00:26]} Rh7 {[%emt 0:00:49]} 32. Qg6+ {[%emt 0:00:20]} Kh8 {[%emt 0:00:17]} 33. Kc2 {[%emt 0:00:58]} Nd7 {[%emt 0:00:35]} 34. Ne4 {[%emt 0:00:36] Black must now prevent f7.} Rb8 {[%emt 0:00:38]} 35. Ng3 {[%emt 0:00:40] Strongly threatening Nf5.} e4 {[%emt 0:00:10]} 36. Qxe4 {[%emt 0:00:51]} Ne5 {[%emt 0:00:26]} 37. f4 {[%emt 0:00:35]} Nf7 {[%emt 0:00:26]} 38. Nf5 {[%emt 0:00:28]} Ra8 {[%emt 0:00:35]} 39. Ne7 {[%emt 0:00:32] Intending Qg6 and mate.} Rb8 {[%emt 0:00:54]} 40. Ng6+ {[%emt 0:00:29]} (40. Qg6 $142 Bh6 41. Bxh6 Nxh6 42. f7 Nxf7 43. Qf6+ Rg7 44. Qh4+ Rh7 45. Qe1) 40... Kg8 {[%emt 0:00:05]} 41. Ne7+ {[%emt 0:30:34]} (41. Kb3 $18 Bh6 42. Bxh6 Nxh6 43. Ne7+ Kh8 44. f7 Rxf7 45. Qe6 Rxe7 46. Qxe7) 41... Kh8 {[%emt 0:30:51]} 42. Qg6 {[%emt 0:00:00][%csl Ge7][%cal Rg6g8]} Bh6 {[%emt 0:00:00]} 43. Bxh6 {[%emt 0:00:00]} Nxh6 {[%emt 0:00:00]} 44. f7 {[%emt 0:00:00]} Nxf7 {[%emt 0:00:00]} 45. Qf6+ {[%emt 0:00:00]} Rg7 {[%emt 0:00:00]} 46. Nf5 {[%emt 0:00:00][%csl Gf5][%cal Rf6g7] White mates.} Rbg8 {[%emt 0:00:00]} 47. Kc3 {[%emt 0:00:00]} Kh7 {[%emt 0:00:00]} 48. Qh4+ {[%emt 0:00:00]} Kg6 {[%emt 0:00:00]} 49. Ne7# {[%emt 0:00:00] Weighted Error Value: White=0.58/Black=0.50} 1-0

[Event "1st Serbian League 2022"]
[Site "Vrnjacka Banja"]
[Date "2022.09.28"]
[Round "9.1"]
[White "Budisavljevic, Luka"]
[Black "Indjic, Aleksandar"]
[Result "0-1"]
[ECO "D05"]
[WhiteElo "2524"]
[BlackElo "2628"]
[Annotator "TA"]
[PlyCount "116"]
[EventDate "2022.09.20"]
[EventType "team-tourn"]
[EventCountry "SRB"]
[SourceTitle "playchess.com"]
[Source "ChessBase"]
[SourceQuality "1"]
[TimeControl "40/5400+30:1800+30"]

{[%evp 10,116,2,3,13,0,7,0,0,0,21,21,19,20,24,16,18,20,29,24,31,17,14,0,39,27,18,14,27,18,22,23,10,42,71,75,62,51,86,41,41,0,69,70,69,83,83,82,91,88,90,85,70,0,27,27,31,39,26,32,51,61,75,0,0,0,82,64,93,0,50,47,39,16,38,0,0,0,0,0,0,0,0,0,0,0,0,0,0,0,0,-77,-86,-159,-159,-165,-150,-506,-508,-491,-431,-4151,-4894,-2220,-1926,-12844,-5235,-29988,-29977]} 1. d4 {[%emt 0:00:04]} d5 {[%emt 0:01:28]} 2. Nf3 {[%emt 0:00:08]} e6 {[%emt 0:00:32]} 3. e3 {[%emt 0:00:14]} Nf6 {[%emt 0:00:24]} 4. Bd3 {[%emt 0:00:12]} b6 {[%emt 0:02:43]} 5. O-O {[%emt 0:00:30]} Bb7 {[%emt 0:00:14]} 6. b3 {[%emt 0:00:08]} Nbd7 {[%emt 0:00:18] D05: Colle System with ...e6.} 7. c4 {[%emt 0:00:24]} Bd6 {[%emt 0:00:19]} 8. cxd5 {[%emt 0:00:29]} exd5 {[%emt 0:00:08] The position is equal.} 9. Ba3 {[%emt 0:00:08]} Qe7 {[%emt 0:03:36] 9...Bxa3 is becoming the main line.} 10. Bxd6 {[%emt 0:00:21]} Qxd6 {[%emt 0:00:07]} 11. Nc3 {[%emt 0:00:45] And now Nb5 would win.} a6 {[%emt 0:00:07] Prevents Nb5.} 12. Rc1 {[%emt 0:01:22]} O-O {[%emt 0:00:46]} 13. Qc2 {[%emt 0:01:55]} Rfe8 {[%emt 0:01:14]} 14. Na4 {[%emt 0:05:34]} Rac8 {[%emt 0:00:52]} 15. Qe2 {[%emt 0:01:45]} Ra8 {[%emt 0:16:51] [#]} 16. Qc2 $146 {[%emt 0:04:19]} ({Predecessor:} 16. Bf5 g6 17. Bh3 c5 18. Rfd1 Rac8 19. Qb2 c4 20. Ne5 Bc6 21. Nc3 {½-½ (23) Rosner,J (2478)-Meskovs,N (2535) Kiel 2022}) 16... c6 {[%emt 0:06:33]} 17. Bf5 {[%emt 0:04:26]} g6 {[%emt 0:01:59]} 18. Bh3 {[%emt 0:03:47][%cal Of3e5]} h5 {[%emt 0:03:40]} 19. Bxd7 {[%emt 0:17:55]} Nxd7 {[%emt 0:00:24]} 20. Ne5 {[%emt 0:00:08]} Nxe5 {[%emt 0:05:07]} 21. dxe5 {[%emt 0:02:01]} Rxe5 {[%emt 0:00:30]} 22. Nxb6 {[%emt 0:00:09][%cal Ba4b6,Bb6d7,Bd7c5][%mdl 32]} Rae8 {[%emt 0:00:03]} 23. Rfd1 {[%emt 0:01:04] Strongly threatening Nc4.} Qe7 {[%emt 0:07:35][%cal Od5d4]} 24. Kh1 {[%emt 0:07:17]} Rf5 {[%emt 0:04:37][%cal Oc6c5]} 25. Kg1 {[%emt 0:04:46]} Qg5 {[%emt 0:02:06]} ({Black should play} 25... Re5 $11) 26. Nd7 $14 {[%emt 0:07:20]} h4 {[%emt 0:09:42]} 27. h3 {[%emt 0:04:08]} Re7 {[%emt 0:00:46]} 28. Nc5 {[%emt 0:08:35]} Bc8 {[%emt 0:00:11]} 29. Kh1 {[%emt 0:01:32]} Rf6 {[%emt 0:06:24][%cal Oc8h3]} 30. Qe2 {[%emt 0:04:27]} Qe5 {[%emt 0:01:43]} 31. Qf1 {[%emt 0:04:09]} (31. Nxa6 Bxa6 32. Qxa6 Rxf2 33. Qc8+ Kg7 $17) ({Better is} 31. Nd3 $14 Qf5 32. Qb2) 31... Qf5 {[%emt 0:01:59]} (31... Qb2 $5 {[%cal Rf6f2]}) 32. Nd3 {[%emt 0:02:56]} a5 {[%emt 0:00:37]} 33. Qg1 {[%emt 0:01:28]} Ba6 {[%emt 0:01:26]} 34. Nc5 {[%emt 0:00:13]} Bc8 {[%emt 0:02:51]} 35. Rd2 {[%emt 0:00:07]} Qg5 {[%emt 0:01:52]} 36. Qh2 {[%emt 0:01:57]} (36. Qd1 $16) 36... Kg7 $11 {[%emt 0:01:09]} 37. Qg1 {[%emt 0:03:09]} Qh5 {[%emt 0:04:56]} (37... Kg8 $1 $11) 38. Qd1 {[%emt 0:03:33]} Qe5 {[%emt 0:00:19]} 39. Qg1 {[%emt 0:00:22]} (39. Nd3 $16 Qd6 40. Rdc2) 39... g5 {[%emt 0:00:46]} ({Black should try} 39... Qh5 $11) 40. Qh2 {[%emt 0:04:24]} Qf5 {[%emt 0:00:16]} 41. Nd3 {[%emt 0:03:12]} (41. b4 $5) 41... Qe4 {[%emt 0:07:08]} 42. a3 {[%emt 0:05:58]} Re8 {[%emt 0:05:17]} 43. Nc5 {[%emt 0:00:48]} Qe7 {[%emt 0:00:06]} 44. Qg1 {[%emt 0:03:09]} g4 {[%emt 0:03:43]} 45. hxg4 {[%emt 0:05:58]} Bxg4 {[%emt 0:02:28][%cal Oh4h3,Bc8g4,Bg4h5,Bh5g6,Bg6f7,Bf7e8][%mdl 32] aiming for ...h3!} 46. f3 {[%emt 0:00:52]} Bh5 {[%emt 0:01:52]} 47. e4 {[%emt 0:00:07]} h3 {[%emt 0:00:28] ...hxg2+ is the strong threat.} 48. Qd4 {[%emt 0:02:00]} (48. exd5 hxg2+ 49. Rxg2+ Kh7 50. Rg7+ Kh8 $17) ({Don't blunder} 48. gxh3+ $2 Kh7 49. Qg5 Bxf3+ 50. Kh2 Qc7+ 51. Qg3 Qxg3+ 52. Kxg3 dxe4 $19) 48... Bg6 {[%emt 0:00:24][%cal Rd5e4]} 49. Kg1 {[%emt 0:01:48]} Kg8 {[%emt 0:00:22]} 50. e5 {[%emt 0:01:55] [#]} (50. Rf1 $11) 50... Rf5 $1 $17 {[%emt 0:00:13]} (50... Qxe5 $2 51. Qxe5 Rxe5 52. Nd7 $18) 51. Re1 {[%emt 0:02:40]} (51. Re2 $142) 51... Qg5 {[%emt 0:05:50]} ({Worse is} 51... Rxe5 52. Rxe5 Qxe5 53. Qxe5 Rxe5 54. Nb7 $15) 52. e6 {[%emt 0:00:01]} Rxf3 {[%emt 0:00:27] White must now prevent ...Rg3. Really sharp!} 53. exf7+ $2 {[%emt 0:01:41] This move loses the game for White.} (53. Rf2 $17) 53... Bxf7 $19 {[%emt 0:00:12]} 54. Rxe8+ {[%emt 0:01:00]} Bxe8 {[%emt 0:00:02]} 55. Kh1 {[%emt 0:02:58]} (55. Re2 $142 Bh5 56. Qe5) 55... Rf1+ {[%emt 0:02:10]} 56. Kh2 {[%emt 0:00:01] [#]} Rd1 $3 {[%emt 0:00:10][%mdl 512]} 57. Ne4 {[%emt 0:03:32]} (57. Qd3 Rxd2) 57... Qf4+ {[%emt 0:00:31]} (57... dxe4 $142 58. Qxe4 Rxd2 59. Kxh3 Qh6+ 60. Kg4 Bd7+ 61. Kg3 Qd6+ 62. Kf3 Qf8+ 63. Kg3 Qb8+ 64. Kf3 Qxb3+ 65. Kf4 Rf2+ 66. Ke5 Qg3+ 67. Kd4 Qd6+ 68. Kc3 Qxa3+ 69. Kc4 Qb4+ 70. Kd3 Qb3+ 71. Kd4 Rd2+ 72. Ke5 Qg3+ 73. Qf4 Rd5+ 74. Kf6 Qg7#) 58. g3 {[%emt 0:00:15]} Qxe4 {[%emt 0:00:13] Weighted Error Value: White=0.55/Black=0.27 (precise)} 0-1

[Event "1st Serbian League 2022"]
[Site "Vrnjacka Banja"]
[Date "2022.09.28"]
[Round "9.2"]
[White "Ivanisevic, Ivan"]
[Black "Puranik, Abhimanyu"]
[Result "0-1"]
[ECO "A36"]
[WhiteElo "2547"]
[BlackElo "2603"]
[Annotator "TA"]
[PlyCount "82"]
[EventDate "2022.09.20"]
[EventType "team-tourn"]
[EventCountry "SRB"]
[SourceTitle "playchess.com"]
[Source "ChessBase"]
[SourceQuality "1"]
[TimeControl "40/5400+30:1800+30"]

{[%evp 9,82,7,10,0,21,0,0,0,0,-33,-38,-33,0,0,20,0,0,-7,-27,-50,39,0,184,104,172,78,208,153,153,129,143,0,0,-83,-72,-83,-61,-78,-75,-182,-126,-293,-230,-253,-212,-214,-214,-399,-326,-327,-332,-321,-290,-399,-332,-513,-310,-431,-428,-472,-435,-518,-506,-1233,-1061,-1110,-1004,-971,-645,-2477,-2184,-29986,-29987,-29987,-2271]} 1. c4 {[%emt 0:00:03]} c5 {[%emt 0:00:32]} 2. g3 {[%emt 0:00:27]} g6 {[%emt 0:00:54]} 3. Bg2 {[%emt 0:00:06]} Bg7 {[%emt 0:00:03]} 4. Nc3 {[%emt 0:00:12]} Nc6 {[%emt 0:00:07]} 5. d3 {[%emt 0:04:27]} d6 {[%emt 0:00:05]} 6. Qd2 {[%emt 0:00:31] A36: Symmetrical English vs ...g6: 4 Bg2 Bg7.} Nf6 {[%emt 0:01:17]} 7. b3 {[%emt 0:00:09]} O-O {[%emt 0:00:49]} 8. Bb2 {[%emt 0:00:04] The position is equal.} e6 $5 {[%emt 0:01:02][%mdl 4] Exploring less charted territory.} 9. Bxc6 {[%emt 0:05:52]} bxc6 {[%emt 0:00:04]} 10. f4 {[%emt 0:00:04]} Qe7 {[%emt 0:05:25] [#]} 11. O-O-O $146 {[%emt 0:14:45]} ({Predecessor:} 11. Nf3 e5 12. fxe5 dxe5 13. Qg5 Re8 14. O-O-O h6 15. Qe3 Ng4 16. Qg1 h5 17. Kb1 {1-0 (53) Larsen,B (2625)-Betancort Curbelo,J (2360) Lanzarote 1976}) 11... Nd7 {[%emt 0:21:22]} 12. h4 {[%emt 0:13:00]} h5 {[%emt 0:03:09]} 13. g4 {[%emt 0:05:21]} hxg4 {[%emt 0:06:56]} 14. h5 $1 {[%emt 0:00:47]} f5 {[%emt 0:00:15]} (14... e5 $15) 15. e4 {[%emt 0:00:37][%mdl 1024] White has compensation.} Bb7 $2 {[%emt 0:12:24]} (15... g5 $1 $11 {and Black has nothing to worry.} 16. h6 (16. fxg5 f4 $11) 16... Bd4) 16. Nge2 {[%emt 0:02:32]} (16. hxg6 $18 {Strongly threatening Nge2.} Qe8 17. Rh5) 16... d5 {[%emt 0:05:39]} (16... g5 $16) 17. Ng3 {[%emt 0:07:03]} (17. hxg6 $18 {is more deadly.} d4 18. Na4) 17... d4 {[%emt 0:03:59]} (17... g5 $16 {might work better.}) 18. Na4 {[%emt 0:04:10]} g5 {[%emt 0:05:27]} 19. h6 {[%emt 0:02:23]} Bf6 {[%emt 0:00:24] [#] ...gxf4 is the strong threat.} 20. h7+ {[%emt 0:02:09]} (20. exf5 $6 gxf4 21. Ne4 exf5 22. Nxf6+ Rxf6 $14) (20. e5 $16 Nxe5 21. fxe5 Bxe5 22. Nh5) 20... Kh8 $11 {[%emt 0:00:38]} 21. exf5 {[%emt 0:03:32]} (21. Nh5 $11 {remains equal.}) 21... gxf4 $17 {[%emt 0:01:22]} 22. Ne4 {[%emt 0:03:49]} Bg7 $36 {[%emt 0:01:34][%mdl 2048] White is under pressure.} ({Don't do} 22... exf5 23. Nxf6 Rxf6 24. Qxf4 $14) 23. fxe6 {[%emt 0:08:24]} Qxe6 {[%emt 0:00:14]} 24. Rdf1 {[%emt 0:01:26]} (24. Ba3 $17) 24... f3 {[%emt 0:08:15]} ({Better is} 24... g3 $19 {Hoping for ...Qg6.} 25. Rh5 Qe7) 25. Kb1 $2 {[%emt 0:03:44]} (25. Ba3 $17) 25... Rae8 {[%emt 0:01:35][%cal Ba8e8,Be8e5,Be5e2][%mdl 32] aiming for ...Qg6.} 26. Qg5 {[%emt 0:03:33] [#] Against Qg6} Bc8 $1 {[%emt 0:02:45] Threatens to win with ...Qe7.} (26... Qf5 27. Qxf5 Rxf5 28. Nd6 $17) 27. Rhg1 {[%emt 0:01:32]} Nf6 {[%emt 0:05:20] Really sharp!} 28. Nf2 {[%emt 0:09:35]} (28. Naxc5 Nxe4 29. Qxg7+ Kxg7 30. Nxe6+ Bxe6 31. dxe4) 28... Qe5 {[%emt 0:02:42]} 29. Bc1 {[%emt 0:01:51]} Qxg5 {[%emt 0:02:25]} ({Not} 29... Nxh7 30. Qxe5 Bxe5 31. Nxg4 $17) 30. Bxg5 {[%emt 0:00:02]} Re5 {[%emt 0:01:30]} ({Don't go for} 30... Nxh7 $2 31. Bc1 $19) 31. Bf4 {[%emt 0:01:53]} Re2 {[%emt 0:01:12]} 32. Bd6 {[%emt 0:00:39]} (32. Nxc5 $142 Bf5 33. Bg3) 32... Rd8 {[%emt 0:01:38][%cal Bf8d8,Bd8e8,Be8e4][%mdl 32]} 33. Bc7 {[%emt 0:00:53]} Rde8 {[%emt 0:00:39]} 34. Nxc5 {[%emt 0:00:20]} Bf5 {[%emt 0:00:26]} 35. Bg3 {[%emt 0:00:48]} Nh5 {[%emt 0:02:19]} 36. Nce4 {[%emt 0:00:51]} (36. Bc7 $142) 36... Bxe4 $19 {[%emt 0:01:03]} 37. dxe4 {[%emt 0:00:23]} d3 {[%emt 0:00:54]} 38. Nxd3 {[%emt 0:00:43]} R8xe4 {[%emt 0:00:09]} 39. Be1 {[%emt 0:00:25]} R4e3 {[%emt 0:00:42]} 40. Nf2 {[%emt 0:00:43]} Rb2+ {[%emt 0:00:45]} 41. Kc1 {[%emt 0:30:06]} Rxa2 {[%emt 0:30:41] What a bad dream for White.  Weighted Error Value: White=1.01/Black=0.48} (41... Ree2 $142 42. Ne4 Rxe4 43. Bd2 Rxa2 44. Re1 f2 45. Rgf1 Ra1+ 46. Kc2 fxe1=Q 47. Bxe1 Re2+ 48. Kd3 Raxe1 49. Rf7 g3 50. c5 g2 51. Rxg7 Nxg7 52. Kc3 g1=Q 53. Kc4 Rc1+ 54. Kb4 Qxc5+ 55. Ka4 Ra2#) 0-1

[Event "1st Serbian League 2022"]
[Site "Vrnjacka Banja"]
[Date "2022.09.28"]
[Round "9.3"]
[White "Gagunashvili, Merab"]
[Black "Perunovic, Milos"]
[Result "1/2-1/2"]
[ECO "A57"]
[WhiteElo "2552"]
[BlackElo "2542"]
[Annotator "TA"]
[PlyCount "56"]
[EventDate "2022.09.20"]
[EventType "team-tourn"]
[EventCountry "SRB"]
[SourceTitle "playchess.com"]
[Source "ChessBase"]
[SourceQuality "1"]
[TimeControl "40/5400+30:1800+30"]

{[%evp 17,56,25,32,10,53,63,67,61,57,42,50,53,47,43,34,29,23,14,17,17,18,29,17,16,14,14,16,15,15,15,15,14,15,14,15,15,15,3,4,5,8]} 1. d4 {[%emt 0:00:04]} Nf6 {[%emt 0:00:26]} 2. c4 {[%emt 0:00:05]} c5 {[%emt 0:00:09]} 3. d5 {[%emt 0:00:15]} b5 {[%emt 0:00:09]} 4. cxb5 {[%emt 0:00:16]} a6 {[%emt 0:00:09]} 5. e3 {[%emt 0:01:34]} e6 {[%emt 0:00:14]} 6. Nc3 {[%emt 0:02:31]} exd5 {[%emt 0:00:08]} 7. Nxd5 {[%emt 0:04:20]} Bb7 {[%emt 0:11:56]} 8. Nxf6+ {[%emt 0:01:37]} Qxf6 {[%emt 0:00:44]} 9. Nf3 {[%emt 0:00:32]} Be7 {[%emt 0:00:06]} 10. bxa6 {[%emt 0:03:46] A57: Benko/Volga Gambit.} Bxa6 {[%emt 0:16:36]} (10... Nxa6 $5 {[%cal Ra6b4]} 11. Bd2 Nb4 $14) 11. Bxa6 {[%emt 0:05:25]} Qxa6 {[%emt 0:00:29] [#]} 12. Bd2 $146 {[%emt 0:10:18] White is slightly better.} ({Predecessor:} 12. Qe2 Bf6 13. a3 O-O 14. Rb1 Nc6 15. Qxa6 Rxa6 16. Ke2 Rb8 17. Rd1 Rxa3 18. Rxd7 {0-1 (80) Gordievsky,D (2474)-Zvjaginsev,V (2659) Khanty-Mansiysk 2013}) 12... Bf6 {[%emt 0:08:12]} 13. Rc1 {[%emt 0:05:49]} Bxb2 {[%emt 0:15:25]} 14. Rxc5 {[%emt 0:02:06] [#] aiming for Qc2.} Nc6 {[%emt 0:00:10]} 15. Rc2 {[%emt 0:07:25]} Bf6 {[%emt 0:04:45]} 16. Qe2 {[%emt 0:03:00] Inhibits Qd3.} O-O {[%emt 0:01:31]} 17. h3 {[%emt 0:10:43]} Rfb8 {[%emt 0:03:28]} 18. Qxa6 {[%emt 0:00:13]} Rxa6 {[%emt 0:00:05]} 19. O-O {[%emt 0:00:49]} Rb2 {[%emt 0:02:12]} 20. Rxb2 {[%emt 0:00:14] The position is equal.} Bxb2 {[%emt 0:00:05]} 21. Bc1 {[%emt 0:00:39]} Rxa2 {[%emt 0:00:40][%cal Ba6a2,Ba2b2,Bb2b7][%mdl 32]} 22. Bxb2 {[%emt 0:00:17]} Rxb2 $11 {[%emt 0:00:04][%mdl 4096] Endgame KRN-KRN} 23. Rd1 {[%emt 0:00:08]} Rb7 {[%emt 0:00:09]} 24. Ng5 {[%emt 0:01:19]} f6 {[%emt 0:08:39]} 25. Ne4 {[%emt 0:00:08]} Rc7 {[%emt 0:00:18]} 26. Nd6 {[%emt 0:00:43]} Kf8 {[%emt 0:00:54]} 27. Ra1 {[%emt 0:01:09] Threatening Ra8+.} Ra7 {[%emt 0:00:42] Against Ra8+} 28. Rxa7 {[%emt 0:00:15]} Nxa7 {[%emt 0:00:07] Weighted Error Value: White=0.03 (flawless) /Black=0.04 (flawless)} 1/2-1/2

[Event "1st Serbian League 2022"]
[Site "Vrnjacka Banja"]
[Date "2022.09.28"]
[Round "9.4"]
[White "Miljkovic, Miroslav D"]
[Black "Pap, Misa"]
[Result "1/2-1/2"]
[ECO "A80"]
[WhiteElo "2456"]
[BlackElo "2381"]
[Annotator "TA"]
[PlyCount "62"]
[EventDate "2022.09.20"]
[EventType "team-tourn"]
[EventCountry "SRB"]
[SourceTitle "playchess.com"]
[Source "ChessBase"]
[SourceQuality "1"]
[TimeControl "40/5400+30:1800+30"]

{[%evp 9,62,8,9,12,5,-5,32,44,41,39,40,46,34,36,61,41,68,64,85,15,48,29,66,57,82,60,78,61,82,78,85,30,33,35,44,38,71,85,87,29,56,55,62,41,50,10,33,17,16,15,92,81,79,112,58]} 1. d4 {[%emt 0:00:06]} f5 {[%emt 0:00:30]} 2. Bg5 {[%emt 0:01:01]} h6 {[%emt 0:00:08]} 3. Bd2 {[%emt 0:01:47]} Nf6 {[%emt 0:01:02] [#]} 4. g3 $146 {[%emt 0:08:24]} ({Predecessor:} 4. e3 d6 5. Be2 g6 6. Nh3 e5 7. Bc3 Qe7 8. dxe5 dxe5 9. Na3 Nc6 10. O-O {0-1 (53) Edouard,R (2649)-Lagarde,M (2655) Europe Echecs INT 2020}) 4... d6 {[%emt 0:08:12]} 5. c4 {[%emt 0:02:30]} g6 {[%emt 0:05:15]} 6. Nf3 {[%emt 0:01:56] A80: Dutch Defence: Unusual White second moves.} Bg7 {[%emt 0:00:39]} 7. Nc3 {[%emt 0:07:57]} Nc6 {[%emt 0:09:47]} 8. d5 {[%emt 0:01:44] White is slightly better.} Ne5 {[%emt 0:00:07]} 9. Nxe5 {[%emt 0:00:37]} dxe5 {[%emt 0:00:02]} 10. Bg2 {[%emt 0:00:30]} O-O {[%emt 0:00:46]} 11. Qb3 {[%emt 0:02:41]} Kh7 {[%emt 0:03:32]} 12. O-O {[%emt 0:02:26]} Rb8 {[%emt 0:05:00]} 13. Rfd1 {[%emt 0:11:03]} a6 {[%emt 0:02:27]} 14. c5 {[%emt 0:01:39]} (14. e4 $16) 14... g5 {[%emt 0:01:59]} 15. Rac1 {[%emt 0:02:51]} b6 {[%emt 0:04:45]} 16. Be1 {[%emt 0:11:07]} Bd7 {[%emt 0:00:40]} 17. cxb6 {[%emt 0:07:18]} Rxb6 {[%emt 0:00:11]} 18. Qc2 {[%emt 0:00:16]} Qe8 {[%emt 0:00:11]} 19. b3 {[%emt 0:02:40]} Rd6 {[%emt 0:03:48]} 20. Na4 {[%emt 0:02:21]} (20. e4 $16) 20... e4 $11 {[%emt 0:00:57]} 21. Nc5 {[%emt 0:01:10]} Bc8 {[%emt 0:07:15]} 22. Qc4 {[%emt 0:01:06]} e3 {[%emt 0:23:02]} 23. fxe3 {[%emt 0:07:03]} Ng4 {[%emt 0:00:16] [#]} 24. Bd2 {[%emt 0:08:00]} (24. Qd3 $1 $16) 24... Qh5 {[%emt 0:01:33]} 25. h3 {[%emt 0:00:09]} Ne5 {[%emt 0:00:12]} 26. Qc2 $36 {[%emt 0:00:27][%mdl 2048] Threatens to win with Bc3. White is more active.} Qxe2 {[%emt 0:00:33]} 27. Ba5 {[%emt 0:01:07]} Qxe3+ {[%emt 0:10:33]} 28. Qf2 {[%emt 0:00:12]} Qxf2+ {[%emt 0:00:07]} 29. Kxf2 {[%emt 0:00:03]} h5 {[%emt 0:04:55]} (29... c6 $11) 30. Bxc7 $16 {[%emt 0:01:09]} Rh6 {[%emt 0:00:06]} 31. Re1 {[%emt 0:00:51] White is much more active.} Ng6 {[%emt 0:00:13] Weighted Error Value: White=0.16 (very precise) /Black=0.19 (very precise)} 1/2-1/2

[Event "1st Serbian League 2022"]
[Site "Vrnjacka Banja"]
[Date "2022.09.28"]
[Round "9.5"]
[White "Savic, Miodrag R"]
[Black "Kosic, Dragan"]
[Result "1/2-1/2"]
[WhiteElo "2406"]
[BlackElo "2399"]
[Annotator "TA"]
[PlyCount "30"]
[EventDate "2022.09.20"]
[EventType "team-tourn"]
[EventCountry "SRB"]
[SourceTitle "playchess.com"]
[Source "ChessBase"]
[SourceQuality "1"]
[TimeControl "40/5400+30:1800+30"]

{[%evp 17,19,0,22,-4]} 1. e4 {[%emt 0:00:05]} e6 {[%emt 0:00:22]} 2. d4 {[%emt 0:00:27]} d5 {[%emt 0:00:05]} 3. e5 {[%emt 0:00:45]} c5 {[%emt 0:00:14]} 4. c3 {[%emt 0:00:30]} Nc6 {[%emt 0:00:08]} 5. Nf3 {[%emt 0:00:52]} Bd7 {[%emt 0:01:09]} 6. Be2 {[%emt 0:01:35]} Nge7 {[%emt 0:02:11]} 7. O-O {[%emt 0:01:04]} cxd4 {[%emt 0:00:25]} 8. cxd4 {[%emt 0:00:23]} Nf5 {[%emt 0:00:05]} 9. Nc3 {[%emt 0:00:17]} Rc8 {[%emt 0:00:08]} 10. a3 {[%emt 0:00:47] [#] An uneventful encounter. C02: French: Advance Variation.} (10. Bg5 $5 {[%cal Rg5d8]} Qb6 11. Na4 $11) 10... Be7 $146 ({Predecessor:} 10... a6 11. Rb1 h6 12. Kh1 b5 13. Be3 Na5 14. Bd3 g6 15. Bc1 Nh4 16. Ne1 Nc4 17. Ne2 Nf5 18. Nc2 Na5 {1-0 (37) Rapport,R (2671)-Sandipan,C (2585) Abu Dhabi 2015}) 11. Be3 O-O 12. Bd3 Nxe3 13. fxe3 f5 14. exf6 Bxf6 15. Rc1 Qe7 {½-½ (15) Savic,M (2503)-Kosic,D (2482) Paracin 2019} 1/2-1/2